[Event "*** Titled Tuesday Blitz"]
[Site "Chess.com"]
[Date "2019.07.02"]
[Round "3"]
[White "DryCounty"]
[Black "David_Paravyan"]
[Result "1-0"]
[WhiteElo "2711"]
[BlackElo "2854"]
[TimeControl "180+2"]
[EndTime "13:41:37 PDT"]
[Termination "DryCounty won by resignation"]

1. e4 {[%clk 0:03:01.9]} 1... c5 {[%clk 0:02:59]} 2. Nf3 {[%clk 0:03:02.1]} 2...
Nc6 {[%clk 0:03:00.7]} 3. d4 {[%clk 0:03:01.7]} 3... cxd4 {[%clk 0:03:02.6]} 4.
Nxd4 {[%clk 0:03:03]} 4... g6 {[%clk 0:03:04.3]} 5. c4 {[%clk 0:03:03.4]} 5...
Nf6 {[%clk 0:03:05.8]} 6. Nc3 {[%clk 0:03:03.8]} 6... d6 {[%clk 0:03:06.4]} 7.
f3 {[%clk 0:03:02.8]} 7... Nxd4 {[%clk 0:03:07]} 8. Qxd4 {[%clk 0:03:02.8]} 8...
Bg7 {[%clk 0:03:08.5]} 9. Be3 {[%clk 0:03:04.2]} 9... O-O {[%clk 0:03:08.6]} 10.
Qd2 {[%clk 0:03:05.7]} 10... a5 {[%clk 0:03:08.9]} 11. Na4 {[%clk 0:03:04.6]}
11... Nd7 {[%clk 0:03:01.8]} 12. Rc1 {[%clk 0:03:01.8]} 12... Nc5 {[%clk
0:02:57.9]} 13. Nc3 {[%clk 0:02:57]} 13... a4 {[%clk 0:02:58.9]} 14. Be2 {[%clk
0:02:54.9]} 14... Qa5 {[%clk 0:02:56.7]} 15. O-O {[%clk 0:02:52.3]} 15... Be6
{[%clk 0:02:52.4]} 16. Rfd1 {[%clk 0:02:47.2]} 16... Rfc8 {[%clk 0:02:50.7]} 17.
Nb5 {[%clk 0:02:38.5]} 17... Bd7 {[%clk 0:02:37.5]} 18. Qxa5 {[%clk 0:02:23.6]}
18... Rxa5 {[%clk 0:02:39.4]} 19. Rc2 {[%clk 0:02:02.5]} 19... h5 {[%clk
0:02:37.4]} 20. Rdc1 {[%clk 0:01:40.1]} 20... Kh7 {[%clk 0:02:35.9]} 21. Bg5
{[%clk 0:01:28]} 21... Bh6 {[%clk 0:02:08.5]} 22. Bxe7 {[%clk 0:01:21.4]} 22...
Be3+ {[%clk 0:02:09.5]} 23. Kf1 {[%clk 0:01:15.1]} 23... Bxc1 {[%clk 0:02:11]}
24. Rxc1 {[%clk 0:01:11.2]} 24... Nxe4 {[%clk 0:01:26.5]} 25. Nd4 {[%clk
0:00:58.3]} 25... Re5 {[%clk 0:01:20.4]} 26. Bh4 {[%clk 0:00:50.6]} 26... g5
{[%clk 0:01:15.1]} 27. Be1 {[%clk 0:00:48.4]} 27... Nf6 {[%clk 0:01:09.4]} 28.
Bg3 {[%clk 0:00:46.1]} 28... b5 {[%clk 0:00:56.2]} 29. Bxe5 {[%clk 0:00:42.8]}
29... dxe5 {[%clk 0:00:57.3]} 30. Nc2 {[%clk 0:00:37.4]} 30... bxc4 {[%clk
0:00:57.5]} 31. Ne3 {[%clk 0:00:34.9]} 31... a3 {[%clk 0:00:53.1]} 32. bxa3
{[%clk 0:00:26]} 32... c3 {[%clk 0:00:54.3]} 33. Nc4 {[%clk 0:00:25.2]} 33... e4
{[%clk 0:00:30.9]} 34. Rxc3 {[%clk 0:00:15.7]} 34... Nd5 {[%clk 0:00:29.1]} 35.
Rb3 {[%clk 0:00:10.1]} 35... Nf4 {[%clk 0:00:23.6]} 36. Nb6 {[%clk 0:00:07.6]}
36... Rc1+ {[%clk 0:00:22.3]} 37. Kf2 {[%clk 0:00:08.7]} 37... Be6 {[%clk
0:00:19.4]} 38. Rb4 {[%clk 0:00:07.2]} 38... exf3 {[%clk 0:00:13.6]} 39. Bxf3
{[%clk 0:00:05.9]} 39... Nd3+ {[%clk 0:00:14.3]} 40. Ke3 {[%clk 0:00:07.2]}
40... Nxb4 {[%clk 0:00:15.5]} 41. axb4 {[%clk 0:00:08.6]} 41... Bxa2 {[%clk
0:00:16.3]} 42. Bxh5 {[%clk 0:00:08.9]} 42... Rc2 {[%clk 0:00:15.3]} 43. Bf3
{[%clk 0:00:09.1]} 43... Rb2 {[%clk 0:00:15.4]} 44. Nd5 {[%clk 0:00:07.4]} 44...
Kg7 {[%clk 0:00:14.2]} 45. Nc3 {[%clk 0:00:06.8]} 45... Be6 {[%clk 0:00:08.1]}
46. b5 {[%clk 0:00:07]} 46... Bd7 {[%clk 0:00:09]} 47. Bc6 {[%clk 0:00:06.5]}
47... Bc8 {[%clk 0:00:06]} 48. Kd4 {[%clk 0:00:06.7]} 48... f5 {[%clk
0:00:07.2]} 49. Nd5 {[%clk 0:00:06.4]} 49... f4 {[%clk 0:00:07.6]} 50. Ne7
{[%clk 0:00:05.8]} 50... Be6 {[%clk 0:00:07.2]} 51. Kc5 {[%clk 0:00:07]} 51...
Kf6 {[%clk 0:00:07.2]} 52. Nd5+ {[%clk 0:00:06.4]} 52... Ke5 {[%clk 0:00:06.9]}
53. Nb4 {[%clk 0:00:06.5]} 53... g4 {[%clk 0:00:05.7]} 54. Nd3+ {[%clk
0:00:07.4]} 54... Kf5 {[%clk 0:00:04.8]} 55. Nxb2 {[%clk 0:00:09.3]} 55... Bc8
{[%clk 0:00:06.1]} 56. Nd3 {[%clk 0:00:09.6]} 56... Kg5 {[%clk 0:00:07.6]} 57.
b6 {[%clk 0:00:10]} 57... g3 {[%clk 0:00:09]} 58. hxg3 {[%clk 0:00:10.5]} 58...
fxg3 {[%clk 0:00:10.9]} 59. b7 {[%clk 0:00:11.4]} 1-0

[Event "*** Titled Tuesday Blitz"]
[Site "Chess.com"]
[Date "2019.07.02"]
[Round "3"]
[White "severomorskij"]
[Black "Blitzstream"]
[Result "1/2-1/2"]
[WhiteElo "2849"]
[BlackElo "2786"]
[TimeControl "180+2"]
[EndTime "13:41:41 PDT"]
[Termination "Game drawn by repetition"]

1. d4 {[%clk 0:03:01.9]} 1... d5 {[%clk 0:03:01.1]} 2. c4 {[%clk 0:03:02.3]}
2... c6 {[%clk 0:03:02.5]} 3. Nc3 {[%clk 0:03:03.3]} 3... Nf6 {[%clk 0:03:03.5]}
4. Nf3 {[%clk 0:03:04.6]} 4... e6 {[%clk 0:03:05]} 5. Bg5 {[%clk 0:03:04.7]}
5... h6 {[%clk 0:03:06]} 6. Bh4 {[%clk 0:03:04.1]} 6... dxc4 {[%clk 0:03:06.8]}
7. e4 {[%clk 0:03:05.1]} 7... g5 {[%clk 0:03:08.2]} 8. Bg3 {[%clk 0:03:06.1]}
8... b5 {[%clk 0:03:10.1]} 9. Be2 {[%clk 0:03:06.3]} 9... Bb7 {[%clk 0:03:10]}
10. Qc2 {[%clk 0:03:06.9]} 10... Nbd7 {[%clk 0:03:10.9]} 11. Rd1 {[%clk
0:03:07.7]} 11... Qb6 {[%clk 0:03:04.4]} 12. h4 {[%clk 0:03:03.6]} 12... Rg8
{[%clk 0:02:42]} 13. hxg5 {[%clk 0:03:02.2]} 13... hxg5 {[%clk 0:02:42.9]} 14.
O-O {[%clk 0:02:28.6]} 14... Be7 {[%clk 0:02:39.3]} 15. b3 {[%clk 0:02:25.7]}
15... cxb3 {[%clk 0:02:35.6]} 16. axb3 {[%clk 0:02:26.2]} 16... a6 {[%clk
0:02:19.2]} 17. Rfe1 {[%clk 0:02:15]} 17... Nh5 {[%clk 0:02:10.9]} 18. Bh2
{[%clk 0:02:15]} 18... Nf4 {[%clk 0:02:12]} 19. Bf1 {[%clk 0:02:11.7]} 19...
O-O-O {[%clk 0:02:06.3]} 20. d5 {[%clk 0:02:06.5]} 20... Bc5 {[%clk 0:01:54.2]}
21. dxe6 {[%clk 0:01:23.3]} 21... fxe6 {[%clk 0:01:53.2]} 22. e5 {[%clk
0:01:17.8]} 22... g4 {[%clk 0:01:45.4]} 23. Bxf4 {[%clk 0:01:15.8]} 23... gxf3
{[%clk 0:01:46.5]} 24. g3 {[%clk 0:01:05.2]} 24... Rdf8 {[%clk 0:01:47]} 25. Qd2
{[%clk 0:00:41.9]} 25... Bxf2+ {[%clk 0:01:47.7]} 26. Qxf2 {[%clk 0:00:39.8]}
26... Rxf4 {[%clk 0:01:48.4]} 27. Ne4 {[%clk 0:00:31.8]} 27... Qxf2+ {[%clk
0:01:29.2]} 28. Kxf2 {[%clk 0:00:30.6]} 28... Rxe4 {[%clk 0:01:05.8]} 29. Rxe4
{[%clk 0:00:30.5]} 29... c5 {[%clk 0:01:05.1]} 30. Re3 {[%clk 0:00:28.9]} 30...
Bd5 {[%clk 0:00:51.7]} 31. Rb1 {[%clk 0:00:11.7]} 31... Rg5 {[%clk 0:00:49.8]}
32. Rbe1 {[%clk 0:00:11.8]} 32... Kc7 {[%clk 0:00:49.3]} 33. Bh3 {[%clk
0:00:12.2]} 33... Kc6 {[%clk 0:00:48.1]} 34. g4 {[%clk 0:00:12.7]} 34... a5
{[%clk 0:00:44.6]} 35. Kg3 {[%clk 0:00:13]} 35... Rg7 {[%clk 0:00:35.6]} 36. Ra1
{[%clk 0:00:10]} 36... Kb6 {[%clk 0:00:33.7]} 37. Bf1 {[%clk 0:00:10.2]} 37...
Nb8 {[%clk 0:00:34.4]} 38. Bd3 {[%clk 0:00:08.1]} 38... Nc6 {[%clk 0:00:25.3]}
39. Be4 {[%clk 0:00:09.2]} 39... Bxe4 {[%clk 0:00:24.8]} 40. Rxe4 {[%clk
0:00:11.1]} 40... Nd4 {[%clk 0:00:26.6]} 41. Kf4 {[%clk 0:00:03.4]} 41... Rf7+
{[%clk 0:00:21.4]} 42. Kg5 {[%clk 0:00:03.6]} 42... Nxb3 {[%clk 0:00:21.1]} 43.
Rh1 {[%clk 0:00:03.2]} 43... f2 {[%clk 0:00:21]} 44. Rf4 {[%clk 0:00:04.4]}
44... Rg7+ {[%clk 0:00:19.4]} 45. Kf6 {[%clk 0:00:05.2]} 45... Rg8 {[%clk
0:00:20.6]} 46. Kxe6 {[%clk 0:00:05.8]} 46... a4 {[%clk 0:00:22.1]} 47. Rxf2
{[%clk 0:00:06.7]} 47... a3 {[%clk 0:00:23.1]} 48. Kf7 {[%clk 0:00:07.9]} 48...
Rc8 {[%clk 0:00:23.7]} 49. e6 {[%clk 0:00:08.8]} 49... b4 {[%clk 0:00:19.5]} 50.
e7 {[%clk 0:00:09.9]} 50... Nd4 {[%clk 0:00:20.5]} 51. Rfh2 {[%clk 0:00:08.2]}
51... b3 {[%clk 0:00:20.5]} 52. Rh8 {[%clk 0:00:08.9]} 52... Rc7 {[%clk
0:00:21.6]} 53. Kf6 {[%clk 0:00:06.7]} 53... Rxe7 {[%clk 0:00:21.3]} 54. Kxe7
{[%clk 0:00:08.6]} 54... a2 {[%clk 0:00:20.9]} 55. g5 {[%clk 0:00:07.7]} 55...
Nc6+ {[%clk 0:00:22.2]} 56. Kd6 {[%clk 0:00:08.1]} 56... b2 {[%clk 0:00:23.8]}
57. Rc8 {[%clk 0:00:08.8]} 57... b1=Q {[%clk 0:00:22.5]} 58. Rxc6+ {[%clk
0:00:09.6]} 58... Kb7 {[%clk 0:00:23.9]} 59. Rc7+ {[%clk 0:00:10.7]} 59... Kb6
{[%clk 0:00:24.2]} 60. Rc6+ {[%clk 0:00:11.7]} 60... Kb7 {[%clk 0:00:15.3]} 61.
Rc7+ {[%clk 0:00:12.8]} 61... Kb6 {[%clk 0:00:16.8]} 62. Rc6+ {[%clk 0:00:13.9]}
1/2-1/2

[Event "*** Titled Tuesday Blitz"]
[Site "Chess.com"]
[Date "2019.07.02"]
[Round "3"]
[White "WorldChampionBulletChess"]
[Black "Grootneus"]
[Result "0-1"]
[WhiteElo "2106"]
[BlackElo "2164"]
[TimeControl "180+2"]
[EndTime "13:41:43 PDT"]
[Termination "Grootneus won by resignation"]

1. d4 {[%clk 0:03:01.9]} 1... Nf6 {[%clk 0:02:55.5]} 2. c3 {[%clk 0:03:01.9]}
2... d5 {[%clk 0:02:53.5]} 3. b4 {[%clk 0:02:55.9]} 3... Bf5 {[%clk 0:02:41.7]}
4. Bf4 {[%clk 0:02:56.5]} 4... Nbd7 {[%clk 0:02:42.5]} 5. a4 {[%clk 0:02:55.3]}
5... a5 {[%clk 0:02:43.2]} 6. Na3 {[%clk 0:02:55.9]} 6... axb4 {[%clk 0:02:43]}
7. cxb4 {[%clk 0:02:57.8]} 7... e5 {[%clk 0:02:44.4]} 8. dxe5 {[%clk 0:02:56.8]}
8... Bxb4+ {[%clk 0:02:45.3]} 9. Bd2 {[%clk 0:02:57.9]} 9... Bxd2+ {[%clk
0:02:42.8]} 10. Qxd2 {[%clk 0:02:59.8]} 10... Nxe5 {[%clk 0:02:44.2]} 11. Nf3
{[%clk 0:02:59.6]} 11... Nxf3+ {[%clk 0:02:42]} 12. exf3 {[%clk 0:03:00.7]}
12... O-O {[%clk 0:02:40.9]} 13. Be2 {[%clk 0:03:02.3]} 13... Rxa4 {[%clk
0:02:41.6]} 14. O-O {[%clk 0:03:02.4]} 14... Qa8 {[%clk 0:02:40.5]} 15. Qc3
{[%clk 0:02:51.1]} 15... c6 {[%clk 0:02:32.4]} 16. g4 {[%clk 0:02:50.3]} 16...
Bg6 {[%clk 0:02:29.2]} 17. h4 {[%clk 0:02:44.1]} 17... h5 {[%clk 0:02:19.5]} 18.
Bd1 {[%clk 0:02:40]} 18... hxg4 {[%clk 0:01:45.9]} 19. Bxa4 {[%clk 0:02:39.9]}
19... Qxa4 {[%clk 0:01:47.8]} 20. fxg4 {[%clk 0:02:27]} 20... Qxg4+ {[%clk
0:01:37.7]} 21. Qg3 {[%clk 0:02:27.9]} 21... Qh5 {[%clk 0:01:37.3]} 22. f3
{[%clk 0:02:08.3]} 22... Qh6 {[%clk 0:01:10.5]} 23. Nb1 {[%clk 0:02:00.6]} 23...
Nh5 {[%clk 0:01:10.1]} 24. Qg5 {[%clk 0:01:58.6]} 24... Qxg5+ {[%clk 0:01:09.5]}
25. hxg5 {[%clk 0:02:00.5]} 25... Nf4 {[%clk 0:01:11.2]} 26. Nd2 {[%clk
0:02:01.3]} 26... c5 {[%clk 0:01:01]} 27. Ra7 {[%clk 0:01:40.7]} 27... Rb8
{[%clk 0:00:56]} 28. Nb3 {[%clk 0:01:25.9]} 28... c4 {[%clk 0:00:48.1]} 29. Nd4
{[%clk 0:01:15.1]} 29... Kf8 {[%clk 0:00:41.3]} 30. Rfa1 {[%clk 0:01:06.9]}
30... b5 {[%clk 0:00:37.3]} 31. Nc6 {[%clk 0:00:58.8]} 31... Re8 {[%clk
0:00:30.5]} 32. Ra8 {[%clk 0:00:58.4]} 32... Nd3 {[%clk 0:00:13.2]} 33. R8a5
{[%clk 0:00:47.1]} 33... Rc8 {[%clk 0:00:10.4]} 34. Ra8 {[%clk 0:00:40.2]} 34...
Re8 {[%clk 0:00:11.3]} 35. R8a5 {[%clk 0:00:40.7]} 35... c3 {[%clk 0:00:10.5]}
36. Rxb5 {[%clk 0:00:38.3]} 36... c2 {[%clk 0:00:11.6]} 37. Rxd5 {[%clk
0:00:24]} 37... c1=Q+ {[%clk 0:00:12.7]} 38. Rxc1 {[%clk 0:00:24.6]} 38... Nxc1
{[%clk 0:00:14.6]} 39. Ne5 {[%clk 0:00:20.7]} 39... Bf5 {[%clk 0:00:15.7]} 40.
Nc4 {[%clk 0:00:19.9]} 40... Be6 {[%clk 0:00:11.6]} 41. Rc5 {[%clk 0:00:21.1]}
41... Bxc4 {[%clk 0:00:12.5]} 42. Rxc4 {[%clk 0:00:23]} 42... Nd3 {[%clk
0:00:13.1]} 43. g6 {[%clk 0:00:22.6]} 43... fxg6 {[%clk 0:00:12.9]} 44. Rd4
{[%clk 0:00:23.1]} 44... Ne5 {[%clk 0:00:14]} 45. Kf2 {[%clk 0:00:23.2]} 45...
Kf7 {[%clk 0:00:14.8]} 46. Rf4+ {[%clk 0:00:24.6]} 46... Ke6 {[%clk 0:00:15.4]}
47. Re4 {[%clk 0:00:26.5]} 47... Kf5 {[%clk 0:00:15.2]} 48. Kg3 {[%clk
0:00:20.7]} 48... Ra8 {[%clk 0:00:13.6]} 49. Rf4+ {[%clk 0:00:19.7]} 49... Kg5
{[%clk 0:00:13.3]} 50. Rb4 {[%clk 0:00:17.2]} 50... Ra3 {[%clk 0:00:10.5]} 51.
Rb5 {[%clk 0:00:16.2]} 51... Rxf3+ {[%clk 0:00:11]} 52. Kg2 {[%clk 0:00:17.2]}
52... Kf4 {[%clk 0:00:12.3]} 53. Rxe5 {[%clk 0:00:17.1]} 53... Kxe5 {[%clk
0:00:14.2]} 54. Kxf3 {[%clk 0:00:18.5]} 54... Kf5 {[%clk 0:00:16.1]} 55. Kg3
{[%clk 0:00:19.6]} 55... Kg5 {[%clk 0:00:17.6]} 56. Kf3 {[%clk 0:00:20.3]} 56...
Kh4 {[%clk 0:00:18.8]} 57. Kg2 {[%clk 0:00:20.8]} 57... Kg4 {[%clk 0:00:20.2]}
58. Kh2 {[%clk 0:00:22.6]} 58... Kf3 {[%clk 0:00:21.2]} 59. Kh3 {[%clk
0:00:22.8]} 59... g5 {[%clk 0:00:22.2]} 60. Kh2 {[%clk 0:00:24.7]} 60... g4
{[%clk 0:00:23.6]} 61. Kh1 {[%clk 0:00:26.6]} 61... g3 {[%clk 0:00:22.9]} 62.
Kg1 {[%clk 0:00:28.1]} 62... g2 {[%clk 0:00:24.2]} 63. Kh2 {[%clk 0:00:28.7]}
63... Kf2 {[%clk 0:00:25.6]} 64. Kh3 {[%clk 0:00:30.3]} 64... g1=Q {[%clk
0:00:27.5]} 0-1

[Event "*** Titled Tuesday Blitz"]
[Site "Chess.com"]
[Date "2019.07.02"]
[Round "3"]
[White "FMJoseHerrera"]
[Black "Benjoneliere44"]
[Result "0-1"]
[WhiteElo "2645"]
[BlackElo "2443"]
[TimeControl "180+2"]
[EndTime "13:41:46 PDT"]
[Termination "Benjoneliere44 won on time"]

1. Nf3 {[%clk 0:03:01.9]} 1... d5 {[%clk 0:02:59.7]} 2. g3 {[%clk 0:03:00.3]}
2... c6 {[%clk 0:03:00.8]} 3. Bg2 {[%clk 0:03:00.2]} 3... Bg4 {[%clk 0:03:02.2]}
4. d3 {[%clk 0:03:01]} 4... Nd7 {[%clk 0:03:03.2]} 5. O-O {[%clk 0:03:01.1]}
5... e6 {[%clk 0:03:04.5]} 6. c3 {[%clk 0:03:02]} 6... h5 {[%clk 0:03:05.2]} 7.
Qb3 {[%clk 0:03:02.6]} 7... Nc5 {[%clk 0:02:56.1]} 8. Qc2 {[%clk 0:03:01.1]}
8... Bxf3 {[%clk 0:02:57]} 9. exf3 {[%clk 0:02:56.6]} 9... h4 {[%clk 0:02:58.9]}
10. d4 {[%clk 0:02:54.7]} 10... Nd7 {[%clk 0:02:58.4]} 11. f4 {[%clk 0:02:55.6]}
11... g6 {[%clk 0:02:58.2]} 12. Nd2 {[%clk 0:02:53.5]} 12... hxg3 {[%clk
0:02:57.7]} 13. fxg3 {[%clk 0:02:53.2]} 13... Ne7 {[%clk 0:02:55.4]} 14. Nf3
{[%clk 0:02:53.8]} 14... Bg7 {[%clk 0:02:53.3]} 15. Ng5 {[%clk 0:02:51.2]} 15...
Qb6 {[%clk 0:02:47.5]} 16. Be3 {[%clk 0:02:41]} 16... Rf8 {[%clk 0:02:38.3]} 17.
Bf2 {[%clk 0:02:35.9]} 17... Nf6 {[%clk 0:02:28.9]} 18. h3 {[%clk 0:02:31.4]}
18... Nf5 {[%clk 0:02:19]} 19. b4 {[%clk 0:02:18.2]} 19... Nd6 {[%clk
0:01:59.7]} 20. a4 {[%clk 0:02:07.2]} 20... Qc7 {[%clk 0:01:53.5]} 21. Rfe1
{[%clk 0:02:02.4]} 21... O-O-O {[%clk 0:01:50.6]} 22. b5 {[%clk 0:02:00.6]}
22... Bh6 {[%clk 0:01:48.8]} 23. bxc6 {[%clk 0:01:43.3]} 23... Qxc6 {[%clk
0:01:49.8]} 24. Nf3 {[%clk 0:01:32.8]} 24... Nfe4 {[%clk 0:01:41.1]} 25. Ne5
{[%clk 0:01:24.3]} 25... Qc7 {[%clk 0:01:41.6]} 26. Bxe4 {[%clk 0:01:14.8]}
26... Nxe4 {[%clk 0:01:41.3]} 27. Rxe4 {[%clk 0:01:16.7]} 27... dxe4 {[%clk
0:01:41.5]} 28. Qxe4 {[%clk 0:01:18.6]} 28... Bg7 {[%clk 0:01:38.9]} 29. Nd3
{[%clk 0:01:19.4]} 29... Qc6 {[%clk 0:01:26.3]} 30. Qe2 {[%clk 0:01:05.3]} 30...
f6 {[%clk 0:00:42.8]} 31. Rb1 {[%clk 0:00:50.9]} 31... e5 {[%clk 0:00:42.2]} 32.
Nc5 {[%clk 0:00:52]} 32... exd4 {[%clk 0:00:33.1]} 33. cxd4 {[%clk 0:00:52.9]}
33... Rfe8 {[%clk 0:00:32.5]} 34. Qc2 {[%clk 0:00:41.2]} 34... b6 {[%clk
0:00:30.6]} 35. Qxg6 {[%clk 0:00:21.4]} 35... Re7 {[%clk 0:00:27.2]} 36. Qf5+
{[%clk 0:00:20.4]} 36... Kb8 {[%clk 0:00:27.3]} 37. a5 {[%clk 0:00:21.7]} 37...
Qd5 {[%clk 0:00:22]} 38. Qc2 {[%clk 0:00:19.9]} 38... Rd6 {[%clk 0:00:21.4]} 39.
axb6 {[%clk 0:00:20.4]} 39... Rxb6 {[%clk 0:00:23]} 40. Rc1 {[%clk 0:00:20.8]}
40... Re8 {[%clk 0:00:14.2]} 41. Qg6 {[%clk 0:00:20.7]} 41... Re7 {[%clk
0:00:13.9]} 42. Qh7 {[%clk 0:00:21.1]} 42... Qd8 {[%clk 0:00:14.3]} 43. Qf5
{[%clk 0:00:21.5]} 43... Qc8 {[%clk 0:00:14.8]} 44. Qd3 {[%clk 0:00:19.1]} 44...
Rc7 {[%clk 0:00:14]} 45. g4 {[%clk 0:00:18.9]} 45... Bf8 {[%clk 0:00:14.7]} 46.
f5 {[%clk 0:00:19.8]} 46... Bxc5 {[%clk 0:00:15.1]} 47. dxc5 {[%clk 0:00:21.7]}
47... Rbb7 {[%clk 0:00:15.7]} 48. Bg3 {[%clk 0:00:22.9]} 48... Ka8 {[%clk
0:00:16.3]} 49. Bxc7 {[%clk 0:00:23.5]} 49... Qxc7 {[%clk 0:00:17.4]} 50. Qd5
{[%clk 0:00:24.3]} 50... a6 {[%clk 0:00:17.5]} 51. c6 {[%clk 0:00:25.3]} 51...
Qg3+ {[%clk 0:00:18.3]} 52. Qg2 {[%clk 0:00:24.8]} 52... Qe3+ {[%clk 0:00:19]}
53. Kh2 {[%clk 0:00:24.8]} 53... Qf4+ {[%clk 0:00:20.2]} 54. Kg1 {[%clk
0:00:08]} 54... Qxc1+ {[%clk 0:00:20.5]} 55. Qf1 {[%clk 0:00:09.6]} 55... Qxf1+
{[%clk 0:00:21.2]} 56. Kxf1 {[%clk 0:00:10.8]} 56... Rc7 {[%clk 0:00:22.7]} 57.
h4 {[%clk 0:00:11.9]} 57... Rxc6 {[%clk 0:00:24.1]} 58. h5 {[%clk 0:00:13.8]}
58... a5 {[%clk 0:00:24.1]} 59. h6 {[%clk 0:00:14.8]} 59... a4 {[%clk
0:00:24.3]} 60. g5 {[%clk 0:00:04.6]} 60... fxg5 {[%clk 0:00:24.8]} 61. h7
{[%clk 0:00:06.2]} 61... Rc8 {[%clk 0:00:24.4]} 0-1

[Event "*** Titled Tuesday Blitz"]
[Site "Chess.com"]
[Date "2019.07.02"]
[Round "3"]
[White "pedro_gines"]
[Black "LucaBrasi1968"]
[Result "1/2-1/2"]
[WhiteElo "2395"]
[BlackElo "2408"]
[TimeControl "180+2"]
[EndTime "13:41:49 PDT"]
[Termination "Game drawn - insufficient material"]

1. Nf3 {[%clk 0:03:01.9]} 1... d5 {[%clk 0:02:38.9]} 2. g3 {[%clk 0:03:03.8]}
2... c6 {[%clk 0:02:38.6]} 3. Bg2 {[%clk 0:03:04.4]} 3... Bg4 {[%clk 0:02:39.6]}
4. O-O {[%clk 0:03:03.8]} 4... Nd7 {[%clk 0:02:40.2]} 5. d4 {[%clk 0:03:02.2]}
5... e6 {[%clk 0:02:41.4]} 6. c4 {[%clk 0:03:01.1]} 6... Ngf6 {[%clk 0:02:37.7]}
7. b3 {[%clk 0:02:59.1]} 7... Bd6 {[%clk 0:02:37.2]} 8. Bb2 {[%clk 0:02:59.9]}
8... O-O {[%clk 0:02:33.4]} 9. Nbd2 {[%clk 0:02:52.2]} 9... Qe7 {[%clk
0:02:33.8]} 10. Qc2 {[%clk 0:02:49.5]} 10... Bf5 {[%clk 0:02:33.2]} 11. Qc1
{[%clk 0:02:49.4]} 11... h6 {[%clk 0:02:33.7]} 12. Ne5 {[%clk 0:02:48.5]} 12...
a5 {[%clk 0:02:31.5]} 13. a3 {[%clk 0:02:48.8]} 13... Bc7 {[%clk 0:02:25.7]} 14.
f4 {[%clk 0:02:35]} 14... Nxe5 {[%clk 0:02:15.4]} 15. fxe5 {[%clk 0:02:35]}
15... Nh7 {[%clk 0:01:47.8]} 16. e4 {[%clk 0:02:09.8]} 16... dxe4 {[%clk
0:01:46.5]} 17. Nxe4 {[%clk 0:02:11.7]} 17... Ng5 {[%clk 0:01:34.7]} 18. Nf2
{[%clk 0:01:49.3]} 18... Nh7 {[%clk 0:01:18.1]} 19. Ne4 {[%clk 0:01:47.6]} 19...
Ng5 {[%clk 0:01:18.5]} 20. Nf2 {[%clk 0:01:49.1]} 20... Nh7 {[%clk 0:01:19.1]}
21. h4 {[%clk 0:01:41.6]} 21... h5 {[%clk 0:01:11.6]} 22. Ne4 {[%clk 0:01:27.5]}
22... Rad8 {[%clk 0:01:06.2]} 23. Qf4 {[%clk 0:01:11.1]} 23... Bg6 {[%clk
0:00:57.8]} 24. Qe3 {[%clk 0:01:08.8]} 24... f6 {[%clk 0:00:43.1]} 25. exf6
{[%clk 0:00:54.1]} 25... Nxf6 {[%clk 0:00:44.1]} 26. Ng5 {[%clk 0:00:55]} 26...
Rfe8 {[%clk 0:00:35.7]} 27. Bh3 {[%clk 0:00:52.8]} 27... e5 {[%clk 0:00:19.5]}
28. Rae1 {[%clk 0:00:43.5]} 28... e4 {[%clk 0:00:15.3]} 29. Ne6 {[%clk
0:00:33.3]} 29... Ra8 {[%clk 0:00:15.9]} 30. Nf4 {[%clk 0:00:29.9]} 30... Bf7
{[%clk 0:00:16]} 31. Bf5 {[%clk 0:00:26.8]} 31... a4 {[%clk 0:00:17]} 32. Bg6
{[%clk 0:00:17]} 32... axb3 {[%clk 0:00:16.7]} 33. Bxf7+ {[%clk 0:00:18]} 33...
Qxf7 {[%clk 0:00:18]} 34. Qxb3 {[%clk 0:00:19.9]} 34... b5 {[%clk 0:00:12.6]}
35. d5 {[%clk 0:00:19.5]} 35... bxc4 {[%clk 0:00:11.8]} 36. Qxc4 {[%clk
0:00:21]} 36... cxd5 {[%clk 0:00:13.3]} 37. Nxd5 {[%clk 0:00:21]} 37... Qxd5
{[%clk 0:00:13]} 38. Qxc7 {[%clk 0:00:21.8]} 38... Rac8 {[%clk 0:00:09.8]} 39.
Qf4 {[%clk 0:00:20]} 39... Rf8 {[%clk 0:00:07.7]} 40. Bxf6 {[%clk 0:00:11.6]}
40... Rxf6 {[%clk 0:00:08]} 41. Qxe4 {[%clk 0:00:12.9]} 41... Qxe4 {[%clk
0:00:09.1]} 42. Rxe4 {[%clk 0:00:13.3]} 42... Rxf1+ {[%clk 0:00:09.7]} 43. Kxf1
{[%clk 0:00:15.2]} 43... Rc3 {[%clk 0:00:10.8]} 44. Ra4 {[%clk 0:00:06.6]} 44...
Rxg3 {[%clk 0:00:11.5]} 45. Kf2 {[%clk 0:00:08.2]} 45... Rb3 {[%clk 0:00:12.2]}
46. Ra5 {[%clk 0:00:08.9]} 46... g6 {[%clk 0:00:12.7]} 47. Ra7 {[%clk
0:00:09.4]} 47... Rh3 {[%clk 0:00:09.7]} 48. Ra4 {[%clk 0:00:08.6]} 48... Kg7
{[%clk 0:00:11]} 49. Kg2 {[%clk 0:00:10.3]} 49... Rb3 {[%clk 0:00:11.2]} 50.
Ra7+ {[%clk 0:00:11.1]} 50... Kf6 {[%clk 0:00:12.3]} 51. Ra6+ {[%clk 0:00:12.6]}
51... Kf5 {[%clk 0:00:13.5]} 52. Ra5+ {[%clk 0:00:13.3]} 52... Kg4 {[%clk
0:00:14.6]} 53. Rg5+ {[%clk 0:00:14.9]} 53... Kxh4 {[%clk 0:00:16]} 54. Rxg6
{[%clk 0:00:16.8]} 54... Rxa3 {[%clk 0:00:17.1]} 55. Rb6 {[%clk 0:00:14.5]}
55... Ra4 {[%clk 0:00:17.8]} 56. Rb2 {[%clk 0:00:14.4]} 56... Rd4 {[%clk
0:00:18]} 57. Kh2 {[%clk 0:00:15.7]} 57... Kg4 {[%clk 0:00:19]} 58. Kg2 {[%clk
0:00:16.4]} 58... h4 {[%clk 0:00:20.1]} 59. Kh2 {[%clk 0:00:17.8]} 59... Rf4
{[%clk 0:00:21.3]} 60. Rg2+ {[%clk 0:00:18.5]} 60... Kh5 {[%clk 0:00:21.2]} 61.
Kh3 {[%clk 0:00:18.9]} 61... Rf3+ {[%clk 0:00:21.6]} 62. Kh2 {[%clk 0:00:20.2]}
62... Rf5 {[%clk 0:00:21.2]} 63. Kh3 {[%clk 0:00:21.1]} 63... Ra5 {[%clk
0:00:20.8]} 64. Kh2 {[%clk 0:00:22.2]} 64... Ra4 {[%clk 0:00:21.2]} 65. Kh3
{[%clk 0:00:23.1]} 65... Ra3+ {[%clk 0:00:22.4]} 66. Kh2 {[%clk 0:00:24.5]}
66... Rb3 {[%clk 0:00:22]} 67. Rg1 {[%clk 0:00:24.7]} 67... Rg3 {[%clk
0:00:22.5]} 68. Rxg3 {[%clk 0:00:25.3]} 68... hxg3+ {[%clk 0:00:23.6]} 69. Kxg3
{[%clk 0:00:27.2]} 1/2-1/2